fUSD/lending_fUSD_20250916
["ID","MTS","AMOUNT","RATE_DAILY","PERIOD"]
[385850343,1758059552812,-450.0,0.00035068,6]
[385850344,1758059552829,-423.89,0.00035068,6]
[385850345,1758059552843,-400.0,0.00035068,6]
[385850346,1758059552859,-778.74,0.00035068,6]
[385850347,1758059552875,-704.61,0.00035068,6]
[385850348,1758059552890,-1172.18,0.00035068,6]
[385850349,1758059552904,-5286.95,0.00035068,6]
[385850350,1758059552919,-400.0,0.00035068,6]
[385850351,1758059552935,-542.4,0.00035068,6]
[385850352,1758059552950,-400.0,0.00035068,6]
[385850353,1758059552964,-435.09,0.00035068,6]
[385850354,1758059552979,-400.0,0.00035068,6]
[385850355,1758059552993,-527.52,0.00035068,6]
[385850356,1758059553008,-551.22,0.00035068,6]
[385850357,1758059553023,-502.07105195,0.00035068,6]
[385850358,1758059553039,-369.16,0.00035068,6]
[385850359,1758059553054,-155.139984,0.00035068,6]
[385850360,1758059553069,-483.09,0.00035068,6]
[385850361,1758059553085,-777.85,0.00035068,6]
[385850362,1758059553100,-536.57071669,0.00035068,6]
[385850363,1758059553115,-445.13,0.00035068,6]
[385850364,1758059553130,-510.44,0.00035068,6]
[385850365,1758059553145,-650.71,0.00035068,6]
[385850366,1758059553159,-632.37,0.00035068,6]
[385850367,1758059553175,-400.0,0.00035068,6]
[385850368,1758059553191,-321.53489992,0.00035068,6]
[385850369,1758059553208,-400.0,0.00035068,6]
[385850370,1758059553222,-763.55,0.00035068,6]
[385850371,1758059553237,-400.0,0.00035068,6]
[385850372,1758059553251,-701.89,0.00035068,6]
[385850373,1758059553266,-796.09,0.00035068,6]
[385850374,1758059553282,-620.92,0.00035068,6]
[385850375,1758059553298,-400.0,0.00035068,6]
[385850376,1758059553314,-400.0,0.00035068,6]
[385850377,1758059553329,-745.62,0.00035068,6]
[385850378,1758059553346,-447.35,0.00035068,6]
[385850379,1758059553363,-629.24,0.00035068,6]
[385850380,1758059553378,-400.0,0.00035068,6]
[385850381,1758059553394,-400.0,0.00035068,6]
[385850382,1758059553410,-936.1,0.00035068,6]
[385850383,1758059553427,-358.7306056,0.00035068,6]
[385850384,1758059553442,-1215.29,0.00035068,6]
[385850385,1758059553460,-400.0,0.00035068,6]
[385850386,1758059553476,-400.0,0.00035068,6]
[385850387,1758059553490,-470.35,0.00035068,6]
[385850388,1758059553505,-400.0,0.00035068,6]
[385850389,1758059553520,-722.71,0.00035068,6]
[385850390,1758059553536,-212.94,0.00035068,6]
[385850391,1758059553552,-656.3,0.00035068,6]
[385850392,1758059553567,-1790.44,0.00035068,6]
[385850393,1758059553582,-400.0,0.00035068,6]
[385850394,1758059553598,-400.0,0.00035068,6]
[385850395,1758059553614,-400.0,0.00035068,6]
[385850396,1758059553629,-1382.16,0.00035068,6]
[385850397,1758059553644,-429.26,0.00035068,6]
[385850398,1758059553659,-1005.55,0.00035068,6]
[385850399,1758059553676,-421.07858259,0.00035068,6]
[385850400,1758059553690,-690.12,0.00035068,6]
[385850401,1758059553706,-400.0,0.00035068,6]
[385850402,1758059553720,-607.8,0.00035068,6]
[385850403,1758059553736,-1101.76,0.00035068,6]
[385850404,1758059553752,-644.78,0.00035068,6]
[385850405,1758059553768,-671.41,0.00035068,6]
[385850406,1758059553784,-400.0,0.00035068,6]
[385850407,1758059553800,-783.19,0.00035068,6]
[385850408,1758059553816,-467.3,0.00035068,6]
[385850409,1758059553832,-450.16,0.00035068,6]
[385850410,1758059553847,-1181.9,0.00035068,6]
[385850411,1758059553862,-431.77,0.00035068,6]
[385850412,1758059553877,-1421.99,0.00035068,6]
[385850413,1758059553891,-604.53,0.00035068,6]
[385850414,1758059553906,-417.22,0.00035068,6]
[385850415,1758059553920,-633.44,0.00035068,6]
[385850416,1758059553936,-230.45,0.00035087,60]
[385850417,1758059553951,-500.0,0.0003509,7]
[385850418,1758059553966,-500.0,0.00035091,7]
[385850419,1758059553982,-1100.0,0.00035094,7]
[385850420,1758059553996,-151.0,0.00035105,7]
[385850421,1758059554012,-500.0,0.00035121,7]
[385850422,1758059554027,-892.92,0.00035129,6]
[385850423,1758059554042,-568.06,0.00035129,6]
[385850424,1758059554057,-1072.67,0.00035129,6]
[385850425,1758059554073,-512.55,0.00035129,6]
[385850426,1758059554087,-774.02,0.00035129,5]
[385850427,1758059554102,-400.0,0.00035129,6]
[385850428,1758059554118,-400.0,0.00035129,6]
[385850429,1758059554132,-500.0,0.00035129,7]
[385850430,1758059554147,-500.0,0.0003515,7]
[385850431,1758059554162,-1100.0,0.00035159,7]
[385850432,1758059554177,-1200.0,0.00035163,7]
[385850433,1758059554191,-500.0,0.00035164,7]
[385850434,1758059554207,-500.0,0.00035175,7]
[385850435,1758059554221,-4000.0,0.00035175,4]
[385850436,1758059554236,-230.45,0.00035187,60]
[385850437,1758059554250,-500.0,0.00035189,7]
[385850438,1758059554264,-500.0,0.0003519,7]
[385850439,1758059554279,-500.0,0.000352,7]
[385850440,1758059554294,-1200.0,0.00035201,7]
[385850441,1758059554308,-500.0,0.00035213,7]
[385850442,1758059554322,-500.0,0.00035215,7]
[385850443,1758059554337,-500.7,0.00035233,7]
[385850444,1758059554351,-500.0,0.00035281,7]
[385850445,1758059554365,-230.45,0.00035287,60]
[385850446,1758059554380,-839.09243417,0.00035298,2]
[385850447,1758059554394,-2058.39,0.00035303,6]
[385850448,1758059554408,-412.53,0.00035303,6]
[385850449,1758059554422,-618.61,0.00035303,6]
[385850450,1758059554437,-1651.68,0.00035303,6]
[385850451,1758059554454,-2717.2,0.00035303,6]
[385850452,1758059554470,-462.71,0.00035303,6]
[385850453,1758059554485,-400.0,0.00035303,6]
[385850454,1758059554501,-400.0,0.00035303,6]
[385850455,1758059554515,-3231.76,0.00035303,6]
[385850456,1758059554530,-436.89,0.00035303,6]
[385850457,1758059554544,-150.0,0.00035328,2]
[385850458,1758059554559,-150.44271713,0.00035328,2]
[385850459,1758059554574,-150.0,0.00035328,2]
[385850460,1758059554588,-150.0,0.00035328,2]
[385850461,1758059554602,-150.0,0.00035328,2]
[385850462,1758059554616,-200.0,0.00035328,2]
[385850463,1758059554630,-500.0,0.00035328,2]
[385850464,1758059554644,-150.17959453,0.00035328,2]
[385850465,1758059554658,-150.17088193,0.00035328,2]
[385850466,1758059554675,-500.0,0.00035328,2]
[385850467,1758059554957,-150.0,0.00035328,2]
[385850468,1758059554966,-150.0,0.00035328,2]
[385850469,1758059554975,-150.0,0.00035328,2]
[385850470,1758059554984,-150.0,0.00035328,2]
[385850471,1758059554994,-500.0,0.00035328,2]
[385850472,1758059555003,-500.0,0.00035328,2]
[385850473,1758059555013,-151.60303735,0.00035328,2]
[385850474,1758059555022,-150.0,0.00035328,2]
[385850475,1758059555031,-548.0,0.00035328,2]
[385850476,1758059555041,-500.0,0.00035328,2]
[385850477,1758059555050,-500.0,0.00035328,2]
[385850478,1758059555059,-1533.0,0.00035328,2]
[385850479,1758059555068,-150.0,0.00035328,2]
[385850480,1758059555078,-500.0,0.00035328,2]
[385850481,1758059555087,-150.0,0.00035328,2]
[385850482,1758059555096,-500.0,0.00035328,2]
[385850483,1758059555105,-500.0,0.00035328,2]
[385850484,1758059555114,-150.0,0.00035328,2]
[385850485,1758059555123,-500.0,0.00035328,2]
[385850486,1758059555132,-150.0,0.00035328,2]
[385850487,1758059555141,-150.0,0.00035328,2]
[385850488,1758059555150,-150.0,0.00035328,2]
[385850489,1758059555159,-500.0,0.00035328,2]
[385850490,1758059555168,-500.0,0.00035328,2]
[385850491,1758059555177,-151.65558876,0.00035328,2]
[385850492,1758059555186,-150.0,0.00035328,2]
[385850493,1758059555195,-150.0,0.00035328,2]
[385850494,1758059555205,-500.0,0.00035328,2]
[385850495,1758059555214,-500.0,0.00035328,2]
[385850496,1758059555224,-150.0,0.00035328,2]
[385850497,1758059555233,-500.0,0.00035328,2]
[385850498,1758059555242,-150.0,0.00035328,2]
[385850499,1758059555251,-500.0,0.00035328,2]
[385850500,1758059555260,-500.0,0.00035328,2]
[385850501,1758059555270,-500.0,0.00035328,2]
[385850502,1758059555279,-151.9875442,0.00035328,2]
[385850503,1758059555288,-150.0,0.00035328,2]
[385850504,1758059555299,-150.0,0.00035328,2]
[385850505,1758059555308,-500.0,0.00035328,2]
[385850506,1758059555317,-500.0,0.00035328,2]
[385850507,1758059555326,-150.0,0.00035328,2]
[385850508,1758059555335,-500.0,0.00035328,2]
[385850509,1758059555345,-500.0,0.00035328,2]
[385850510,1758059555354,-150.0,0.00035328,2]
[385850511,1758059555365,-500.0,0.00035328,2]
[385850512,1758059555374,-500.0,0.00035328,2]
[385850513,1758059555383,-500.0,0.00035328,2]
[385850514,1758059555393,-485.67,0.0003534,6]
[385850515,1758059555402,-236.4,0.0003534,6]
[385850516,1758059555411,-467.8,0.0003534,6]
[385850517,1758059555420,-400.0,0.00035341,6]
[385850518,1758059555429,-467.83,0.00035341,6]
[385850519,1758059555438,-400.0,0.00035341,6]
[385850520,1758059555447,-453.02,0.00035341,6]
[385850521,1758059555461,-893.66,0.00035341,6]
[385850522,1758059555470,-400.0,0.00035341,6]
[385850523,1758059555479,-400.0,0.00035341,6]
[385850524,1758059555490,-404.97,0.00035341,6]
[385850525,1758059555499,-431.58,0.00035341,6]
[385850526,1758059555509,-564.94,0.00035341,6]
[385850527,1758059555518,-400.0,0.00035341,6]
[385850528,1758059555530,-475.93,0.00035341,6]
[385850529,1758059555540,-646.81,0.00035341,6]
[385850530,1758059555550,-400.0,0.00035341,6]
[385850531,1758059555560,-400.0,0.00035341,6]
[385850532,1758059555569,-503.49,0.00035341,6]
[385850533,1758059555578,-555.18,0.00035341,6]
[385850534,1758059555588,-493.67,0.00035341,6]
[385850535,1758059555598,-406.48,0.00035341,6]
[385850536,1758059555607,-400.0,0.00035341,6]
[385850537,1758059555616,-472.57,0.00035341,6]
[385850538,1758059555626,-566.4,0.00035341,6]
[385850539,1758059555635,-443.11,0.00035341,6]
[385850540,1758059555644,-556.41,0.00035341,6]
[385850541,1758059555653,-642.62,0.00035341,6]
[385850542,1758059555662,-526.48,0.00035341,6]
[385850543,1758059555671,-638.73,0.00035341,6]
[385850544,1758059555681,-514.99,0.00035341,6]
[385850545,1758059555690,-477.56,0.00035341,6]
[385850546,1758059555699,-400.0,0.00035341,6]
[385850547,1758059555708,-824.84,0.00035341,6]
[385850548,1758059555718,-558.91,0.00035341,6]
[385850549,1758059555727,-429.04,0.00035341,6]
[385850550,1758059555736,-771.88,0.00035341,6]
[385850551,1758059555745,-400.0,0.00035341,6]
[385850552,1758059555755,-456.11,0.00035341,6]
[385850553,1758059555764,-422.65,0.00035341,6]
[385850554,1758059555774,-151.0,0.00035341,7]
[385850555,1758059555783,-151.0,0.00035341,7]
[385850556,1758059555792,-151.0,0.00035341,7]
[385850557,1758059555802,-151.0,0.00035341,7]
[385850558,1758059555811,-151.0,0.00035341,7]
[385850559,1758059555821,-151.0,0.00035341,7]
[385850560,1758059555830,-151.0,0.00035341,7]
[385850561,1758059555839,-400.0,0.00035341,6]
[385850562,1758059555848,-400.0,0.00035341,6]
[385850563,1758059555857,-682.71,0.00035341,6]
[385850564,1758059555866,-792.25,0.00035341,6]
[385850565,1758059555875,-1411.58,0.00035341,6]
[385850566,1758059555884,-678.71,0.00035341,6]
[385850567,1758059555894,-1054.00008823,0.00035341,5]
[385850568,1758059555903,-876.88,0.00035341,6]
[385850569,1758059555912,-922.72,0.00035341,6]
[385850570,1758059555921,-590.13,0.00035341,6]
[385850571,1758059555930,-684.03,0.00035341,2]
[385850572,1758059555939,-741.55,0.00035341,6]
[385850573,1758059555949,-400.0,0.00035341,6]
[385850574,1758059555958,-400.0,0.00035341,6]
[385850575,1758059555967,-923.03,0.00035341,6]
[385850576,1758059555976,-400.0,0.00035342,6]
[385850577,1758059555985,-446.83,0.00035342,6]
[385850578,1758059555995,-547.28,0.00035342,6]
[385850579,1758059556004,-237.94099002,0.00035342,6]
[385850580,1758059556013,-418.99217411,0.00035342,6]
[385850581,1758059556022,-404.16,0.00035342,6]
[385850582,1758059556031,-528.17,0.00035342,6]
[385850583,1758059556041,-542.9,0.00035342,6]
[385850584,1758059556050,-854.5,0.00035342,6]
[385850585,1758059556059,-403.43,0.00035342,6]
[385850586,1758059556069,-400.0,0.00035342,6]
[385850587,1758059556078,-400.0,0.00035342,6]
[385850588,1758059556088,-425.79,0.00035342,6]
[385850589,1758059556097,-440.62,0.00035342,6]
[385850590,1758059556107,-627.06,0.00035342,6]
[385850591,1758059556116,-404.88,0.00035342,6]
[385850592,1758059556126,-550.75,0.00035342,6]
[385850593,1758059556135,-482.27,0.00035342,6]
[385850594,1758059556145,-597.91,0.00035342,6]
[385850595,1758059556154,-400.0,0.00035342,6]
[385850596,1758059556164,-489.33,0.00035342,6]
[385850597,1758059556174,-400.0,0.00035342,6]
[385850598,1758059556183,-400.44,0.00035342,6]
[385850599,1758059556193,-432.89,0.00035342,6]
[385850600,1758059556202,-1630.47,0.00035342,6]
[385850601,1758059556212,-464.0,0.00035342,6]
[385850602,1758059556222,-541.51,0.00035342,6]
[385850603,1758059556231,-222.22134626,0.00035342,6]
[385850604,1758059556240,-431.13,0.00035342,6]
[385850605,1758059556251,-666.3,0.00035342,6]
[385850606,1758059556260,-400.0,0.00035342,6]
[385850607,1758059556269,-395.34321231,0.00035342,6]
[385850608,1758059556279,-547.93,0.00035342,6]
[385850609,1758059556288,-474.55,0.00035342,6]
[385850610,1758059556298,-445.76,0.00035342,6]
[385850611,1758059556307,-400.0,0.00035342,6]
[385850612,1758059556316,-681.13,0.00035342,6]
[385850613,1758059556326,-520.69,0.00035342,6]
[385850614,1758059556335,-402.9,0.00035342,6]
[385850615,1758059556345,-400.0,0.00035342,6]
[385850616,1758059556354,-400.0,0.00035342,6]
[385850617,1758059556364,-400.0,0.00035342,6]
[385850618,1758059556373,-438.72,0.00035342,6]
[385850619,1758059556383,-930.22,0.00035342,6]
[385850620,1758059556392,-520.75,0.00035342,6]
[385850621,1758059556402,-400.0,0.00035342,6]
[385850622,1758059556411,-691.69,0.00035342,6]
[385850623,1758059556421,-541.46,0.00035342,6]
[385850624,1758059556430,-840.93,0.00035342,6]
[385850625,1758059556439,-531.61,0.00035342,6]
[385850626,1758059556449,-528.41,0.00035342,6]
[385850627,1758059556462,-3105.74,0.00035342,6]
[385850628,1758059556471,-400.0,0.00035342,6]
[385850629,1758059556480,-593.33,0.00035342,6]
[385850630,1758059556489,-530.57,0.00035342,6]
[385850631,1758059556499,-801.13,0.00035342,6]
[385850632,1758059556509,-305.04128311,0.00035342,6]
[385850633,1758059556519,-400.0,0.00035342,6]
[385850634,1758059556528,-400.0,0.00035342,6]
[385850635,1758059556538,-720.72,0.00035342,6]
[385850636,1758059556547,-450.36,0.00035342,6]
[385850637,1758059556557,-400.0,0.00035342,6]
[385850638,1758059556566,-311.53411079,0.00035342,6]
[385850639,1758059556575,-400.0,0.00035342,6]
[385850640,1758059556585,-455.66,0.00035342,6]
[385850641,1758059556594,-452.15,0.00035342,6]
[385850642,1758059556604,-599.86,0.00035342,6]
[385850643,1758059556614,-1299.74,0.00035342,6]
[385850644,1758059556623,-572.67,0.00035342,6]
[385850645,1758059556633,-400.0,0.00035342,6]
[385850646,1758059556642,-422.38,0.00035342,6]
[385850647,1758059556651,-404.16,0.00035342,6]
[385850648,1758059556660,-400.0,0.00035342,6]
[385850649,1758059556669,-400.0,0.00035342,6]
[385850650,1758059556678,-924.76,0.00035342,6]
[385850651,1758059556687,-1289.24,0.00035342,6]
[385850652,1758059556696,-554.69,0.00035342,6]
[385850653,1758059556704,-400.0,0.00035342,6]
[385850654,1758059556715,-467.79,0.00035342,6]
[385850655,1758059556724,-799.13,0.00035342,6]
[385850656,1758059556733,-943.71,0.00035342,6]
[385850657,1758059556742,-562.81,0.00035342,6]
[385850658,1758059556752,-617.84,0.00035342,6]
[385850659,1758059556761,-1554.92,0.00035342,6]
[385850660,1758059556771,-472.52,0.00035342,6]
[385850661,1758059556781,-502.44,0.00035342,6]
[385850662,1758059556791,-2454.26,0.00035342,6]
[385850663,1758059556801,-581.21,0.00035342,6]
[385850664,1758059556812,-814.45,0.00035342,6]
[385850665,1758059556822,-400.0,0.00035342,6]
[385850666,1758059556831,-2151.75,0.00035342,6]
[385850667,1758059556840,-590.85,0.00035342,6]
[385850668,1758059556850,-513.44000454,0.00035342,6]
[385850669,1758059556860,-576.61,0.00035342,6]
[385850670,1758059556868,-616.64,0.00035342,6]
[385850671,1758059556878,-426.57,0.00035342,6]
[385850672,1758059556887,-2554.31,0.00035342,6]
[385850673,1758059556897,-695.75,0.00035342,6]
[385850674,1758059556905,-862.95,0.00035342,6]
[385850675,1758059556914,-465.42,0.00035342,6]
[385850676,1758059556924,-528.3,0.00035342,6]
[385850677,1758059556935,-629.46,0.00035342,6]
[385850678,1758059556944,-402.58,0.00035342,6]
[385850679,1758059556953,-760.02,0.00035342,6]
[385850680,1758059556964,-400.0,0.00035342,6]
[385850681,1758059556974,-573.15,0.00035342,6]
[385850682,1758059556984,-400.0,0.00035342,6]
[385850683,1758059556993,-555.71,0.00035342,6]
[385850684,1758059557002,-400.0,0.00035342,6]
[385850685,1758059557012,-479.18,0.00035342,6]
[385850686,1758059557022,-447.53,0.00035342,6]
[385850687,1758059557032,-418.11,0.00035342,6]
[385850688,1758059557043,-435.17,0.00035342,6]
[385850689,1758059557054,-450.0,0.00035342,6]
[385850690,1758059557064,-423.89,0.00035342,6]
[385850691,1758059557075,-400.0,0.00035342,6]
[385850692,1758059557084,-778.74,0.00035342,6]
[385850693,1758059557094,-704.61,0.00035342,6]
[385850694,1758059557104,-1172.18,0.00035342,6]
[385850695,1758059557113,-5286.95,0.00035342,6]
[385850696,1758059557123,-400.0,0.00035342,6]
[385850697,1758059557132,-542.4,0.00035342,6]
[385850698,1758059557142,-383.96048537,0.00035342,6]
[385850699,1758059557150,-400.0,0.00035342,6]
[385850700,1758059557159,-527.52,0.00035342,6]
[385850701,1758059557169,-435.09,0.00035342,6]
[385850702,1758059557178,-551.22,0.00035342,6]
[385850703,1758059557187,-483.09,0.00035342,6]
[385850704,1758059557195,-777.85,0.00035342,6]
[385850705,1758059557205,-445.13,0.00035342,6]
[385850706,1758059557214,-173.544193,0.00035342,6]
[385850707,1758059557224,-510.44,0.00035342,6]
[385850708,1758059557233,-650.71,0.00035342,6]
[385850709,1758059557242,-632.37,0.00035342,6]
[385850710,1758059557251,-400.0,0.00035342,6]
[385850711,1758059557261,-400.0,0.00035342,6]
[385850712,1758059557270,-763.55,0.00035342,6]
[385850713,1758059557279,-400.0,0.00035342,6]
[385850714,1758059557288,-701.89,0.00035342,6]
[385850715,1758059557297,-796.09,0.00035342,6]
[385850716,1758059557306,-620.92,0.00035342,6]
[385850717,1758059557315,-230.53999515,0.00035342,6]
[385850718,1758059557324,-400.0,0.00035342,6]
[385850719,1758059557333,-745.62,0.00035342,6]
[385850720,1758059557342,-447.35,0.00035342,6]
[385850721,1758059557352,-629.24,0.00035342,6]
[385850722,1758059557361,-400.0,0.00035342,6]
[385850723,1758059557370,-400.0,0.00035342,6]
[385850724,1758059557379,-936.1,0.00035342,6]
[385850725,1758059557388,-1215.29,0.00035342,6]
[385850726,1758059557397,-400.0,0.00035342,6]
[385850727,1758059557406,-400.0,0.00035342,6]
[385850728,1758059557419,-295.62,0.00035342,6]
[385850729,1758059557433,-470.35,0.00035342,6]
[385850730,1758059557443,-722.71,0.00035342,6]
[385850731,1758059557456,-656.3,0.00035342,6]
[385850732,1758059557473,-1790.44,0.00035342,6]
[385850733,1758059557486,-400.0,0.00035342,6]
[385850734,1758059557497,-400.0,0.00035342,6]
[385850735,1758059557506,-400.0,0.00035342,6]
[385850736,1758059557515,-1382.16,0.00035342,6]
[385850737,1758059557525,-429.26,0.00035342,6]
[385850738,1758059557535,-1005.55,0.00035342,6]
[385850739,1758059557544,-690.12,0.00035342,6]
[385850740,1758059557553,-400.0,0.00035342,6]
[385850741,1758059557562,-607.8,0.00035342,6]
[385850742,1758059557572,-1101.76,0.00035342,6]
[385850743,1758059557581,-644.78,0.00035342,6]
[385850744,1758059557590,-671.41,0.00035342,6]
[385850745,1758059557600,-400.0,0.00035342,6]
[385850746,1758059557610,-783.19,0.00035342,6]
[385850747,1758059557620,-467.3,0.00035342,6]
[385850748,1758059557630,-450.16,0.00035342,6]
[385850749,1758059557639,-1181.9,0.00035342,6]
[385850750,1758059557650,-431.77,0.00035342,6]
[385850751,1758059557659,-1421.99,0.00035342,6]
[385850752,1758059557669,-604.53,0.00035342,6]
[385850753,1758059557679,-417.22,0.00035342,6]
[385850754,1758059557688,-633.44,0.00035342,6]
[385850755,1758059557697,-153.0,0.00035342,2]
[385850756,1758059557706,-153.0,0.00035342,2]
[385850757,1758059557716,-153.0,0.00035342,2]
[385850758,1758059557727,-153.0,0.00035342,2]
[385850759,1758059557736,-153.0,0.00035342,2]
[385850760,1758059557745,-153.0,0.00035342,2]
[385850761,1758059557755,-153.0,0.00035342,2]
[385850762,1758059557765,-153.0,0.00035342,2]
[385850763,1758059557774,-153.0,0.00035342,2]
[385850764,1758059557783,-153.0,0.00035342,2]
[385850765,1758059557792,-153.0,0.00035342,2]
[385850766,1758059557802,-153.0,0.00035342,2]
[385850767,1758059557811,-153.0,0.00035342,2]
[385850768,1758059557820,-153.0,0.00035342,2]
[385850769,1758059557830,-153.0,0.00035342,2]
[385850770,1758059557839,-153.0,0.00035342,2]
[385850771,1758059558038,-153.0,0.00035342,2]
[385850772,1758059558052,-153.0,0.00035342,2]
[385850773,1758059558062,-153.0,0.00035342,2]
[385850774,1758059558073,-153.0,0.00035342,2]
[385850775,1758059558084,-153.0,0.00035342,2]
[385850776,1758059558094,-153.0,0.00035342,2]
[385850777,1758059558103,-153.0,0.00035342,2]
[385850778,1758059558113,-153.0,0.00035342,2]
[385850779,1758059558123,-153.0,0.00035342,2]
[385850780,1758059558133,-153.0,0.00035342,2]
[385850781,1758059558143,-153.0,0.00035342,2]
[385850782,1758059558154,-153.0,0.00035342,2]
[385850783,1758059558165,-153.0,0.00035342,2]
[385850784,1758059558175,-153.0,0.00035342,2]
[385850785,1758059558184,-153.0,0.00035342,2]
[385850786,1758059558194,-153.0,0.00035342,2]
[385850787,1758059558203,-153.0,0.00035342,2]
[385850788,1758059558214,-153.0,0.00035342,2]
[385850789,1758059558224,-153.0,0.00035342,2]
[385850790,1758059558234,-153.0,0.00035342,2]
[385850791,1758059558245,-153.0,0.00035342,2]
[385850792,1758059558255,-153.0,0.00035342,2]
[385850793,1758059558266,-153.0,0.00035342,2]
[385850794,1758059558275,-153.0,0.00035342,2]
[385850795,1758059558286,-153.0,0.00035342,2]
[385850796,1758059558297,-153.0,0.00035342,2]
[385850797,1758059558309,-153.0,0.00035342,2]
[385850798,1758059558319,-153.0,0.00035342,2]
[385850799,1758059558329,-153.0,0.00035342,2]
[385850800,1758059558339,-153.0,0.00035342,2]
[385850801,1758059558348,-153.0,0.00035342,2]
[385850802,1758059558358,-153.0,0.00035342,2]
[385850803,1758059558368,-153.0,0.00035342,2]
[385850804,1758059558378,-153.0,0.00035342,2]
[385850805,1758059558388,-153.0,0.00035342,2]
[385850806,1758059558398,-153.0,0.00035342,2]
[385850807,1758059558407,-153.0,0.00035342,2]
[385850808,1758059558418,-153.0,0.00035342,2]
[385850809,1758059558427,-153.0,0.00035342,2]
[385850810,1758059558436,-153.0,0.00035342,2]
[385850811,1758059558446,-153.0,0.00035342,2]
[385850812,1758059558459,-153.0,0.00035342,2]
[385850813,1758059558469,-153.0,0.00035342,2]
[385850814,1758059558478,-153.0,0.00035342,2]
[385850815,1758059558489,-153.0,0.00035342,2]
[385850816,1758059558500,-153.0,0.00035342,2]
[385850817,1758059558510,-153.0,0.00035342,2]
[385850818,1758059558521,-153.0,0.00035342,2]
[385850819,1758059558532,-153.0,0.00035342,2]
[385850820,1758059558542,-153.0,0.00035342,2]
[385850821,1758059558552,-153.0,0.00035342,2]
[385850822,1758059558561,-153.0,0.00035342,2]
[385850823,1758059558571,-153.0,0.00035342,2]
[385850824,1758059558580,-153.0,0.00035342,2]
[385850825,1758059558590,-153.0,0.00035342,2]
[385850826,1758059558599,-153.0,0.00035342,2]
[385850827,1758059558610,-153.0,0.00035342,2]
[385850828,1758059558621,-153.0,0.00035342,2]
[385850829,1758059558631,-153.0,0.00035342,2]
[385850830,1758059558640,-153.0,0.00035342,2]
[385850831,1758059558650,-153.0,0.00035342,2]
[385850832,1758059558659,-153.0,0.00035342,2]
[385850833,1758059558669,-153.0,0.00035342,2]
[385850834,1758059558680,-153.0,0.00035342,2]
[385850835,1758059558690,-153.0,0.00035342,2]
[385850836,1758059558700,-153.0,0.00035342,2]
[385850837,1758059558711,-153.0,0.00035342,2]
[385850838,1758059558721,-153.0,0.00035342,2]
[385850839,1758059558731,-153.0,0.00035342,2]
[385850840,1758059558741,-1100.0,0.00035348,7]
[385850841,1758059558750,-5007.08603,0.00035361,30]
[385850842,1758059558761,-354071.626749,0.00035379,2]